[Event "Grand Prix Romania 1st Stage 2024"]
[Site "Bucuresti"]
[Date "2024.03.23"]
[Round "2.15"]
[White "Bologan, Victor"]
[Black "Caraba, Alexandru"]
[Result "1-0"]
[ECO "B55"]
[WhiteElo "2594"]
[BlackElo "1944"]
[Annotator "TA"]
[PlyCount "89"]
[EventDate "2024.03.20"]
[EventType "swiss"]
[EventCountry "ROU"]
[SourceTitle "playchess.com"]
[Source "ChessBase"]
[SourceQuality "1"]
[TimeControl "900+5"]

{[%evp 9,89,2,25,-3,7,-2,67,59,59,60,64,62,69,70,92,78,77,77,78,81,89,97,117,110,136,129,127,129,148,120,112,96,143,135,139,80,104,53,62,55,57,52,77,73,100,63,152,162,216,215,378,379,364,380,352,273,333,310,277,215,341,335,392,402,402,372,353,233,734,730,702,656,1669,1517,29987,29988,29988,29989,29989,29990,29989,29986]} 1. e4 {[%emt 0:00:01]} c5 {[%emt 0:00:02]} 2. Nf3 {[%emt 0:00:01]} d6 {[%emt 0:00:02]} 3. d4 {[%emt 0:00:02]} cxd4 {[%emt 0:00:02]} 4. Nxd4 {[%emt 0:00:01]} Nf6 {[%emt 0:00:02]} 5. Bd3 {[%emt 0:00:02]} g6 {[%emt 0:00:04]} 6. c4 {[%emt 0:00:02]} Bg7 {[%emt 0:00:04]} 7. Nc3 {[%emt 0:00:01]} Nbd7 {[%emt 0:00:32]} (7... Nc6 $11 8. Nde2 O-O) 8. O-O {[%emt 0:00:13] White is slightly better.} O-O {[%emt 0:00:20]} 9. Be3 {[%emt 0:00:55]} Nc5 {[%emt 0:00:27]} 10. f3 {[%emt 0:00:12] Against Ng4} Ne6 {[%emt 0:01:07]} 11. Nde2 {[%emt 0:00:40] White is more active.} Nc7 {[%emt 0:00:08]} 12. Qd2 {[%emt 0:00:08]} b6 {[%emt 0:01:15]} 13. Rfd1 {[%emt 0:00:04]} Bb7 {[%emt 0:00:03]} 14. Rac1 {[%emt 0:00:02]} Qd7 {[%emt 0:01:08]} 15. b4 {[%emt 0:00:20]} Rad8 {[%emt 0:00:16]} 16. Bc2 {[%emt 0:00:22]} Qc8 {[%emt 0:00:27]} 17. Bb3 {[%emt 0:00:09]} Qa8 {[%emt 0:00:32]} 18. Nd4 {[%emt 0:01:02]} a6 {[%emt 0:02:32]} 19. Nde2 {[%emt 0:02:10]} Nd7 {[%emt 0:00:35]} 20. a3 {[%emt 0:01:35]} Rfe8 {[%emt 0:01:03]} (20... b5 $142) 21. Qa2 {[%emt 0:00:13][%cal Oc4c5] Strongly threatening c5!} Rf8 {[%emt 0:00:25]} 22. Rd2 {[%emt 0:00:12]} ({White should try} 22. Bg5) 22... b5 {[%emt 0:01:41]} 23. a4 {[%emt 0:01:32]} (23. cxb5 $16 {Threatens to win with b6.} axb5 24. Nd4) 23... bxc4 $14 {[%emt 0:01:20]} 24. Bxc4 {[%emt 0:00:01]} Ne5 {[%emt 0:00:54]} 25. Bb3 {[%emt 0:00:17]} Rc8 {[%emt 0:00:55]} 26. h3 {[%emt 0:01:22] White stays focused until the end.} Nc6 {[%emt 0:00:26]} 27. Qa3 {[%emt 0:00:11]} a5 {[%emt 0:00:12]} (27... Rfd8 $14) 28. b5 $16 {[%emt 0:00:29]} Nb4 {[%emt 0:00:01]} (28... Ne5 $142 29. Rdd1 Qb8) 29. Na2 $18 {[%emt 0:00:15]} d5 $2 {[%emt 0:00:27] [#]} (29... Nxa2 30. Qxa2 (30. Bxa2 Qb8 $18) 30... Ne8 31. Rxc8 Qxc8) 30. Nxb4 {[%emt 0:00:26]} axb4 {[%emt 0:00:01]} 31. Qxb4 {[%emt 0:00:02]} dxe4 {[%emt 0:00:11]} 32. f4 {[%emt 0:00:16]} (32. Qxe7 Bd5 $18) 32... Nd5 {[%emt 0:00:10]} 33. Bxd5 {[%emt 0:00:15]} (33. Qxe4 e6 $11) 33... Bxd5 {[%emt 0:00:01]} 34. Rdc2 {[%emt 0:00:35]} Rfd8 {[%emt 0:00:16]} (34... Rxc2 $142 35. Rxc2 Rd8) 35. a5 {[%emt 0:00:43]} (35. Qxe7 Rxc2 36. Rxc2 Bb3) (35. Rxc8 Rxc8 36. a5 (36. Qxe7 Rxc1+ 37. Nxc1 Qf8 $18) 36... Rxc1+ 37. Nxc1 Bf8) 35... Bf8 {[%emt 0:00:08]} 36. Rxc8 {[%emt 0:01:44]} Rxc8 {[%emt 0:00:01] Black is weak on the dark squares} 37. Rxc8 {[%emt 0:00:03]} Qxc8 {[%emt 0:00:00]} 38. Bc5 {[%emt 0:00:17]} Bc4 $2 {[%emt 0:00:13] [#]} (38... e3 39. a6 (39. Bxe3 Qa8 $16) 39... Qf5) 39. Nc3 {[%emt 0:00:16]} Bd3 {[%emt 0:00:07]} 40. a6 {[%emt 0:00:10][%cal Oa6a7]} (40. Bxe7 $2 {too greedy.} Bxe7 41. Qxe7 Qxc3 $19) 40... Qc7 {[%emt 0:00:03]} 41. a7 {[%emt 0:00:18]} ({Worse is} 41. Nxe4 Bxe4 42. b6 Qxf4 $11) 41... Qxf4 {[%emt 0:00:08]} 42. a8=Q {[%emt 0:00:18] White mates.} ({Weaker is} 42. a8=B e6 $11) 42... Qc1+ {[%emt 0:00:05]} 43. Kh2 {[%emt 0:00:04]} Qf4+ {[%emt 0:00:02]} 44. Kh1 {[%emt 0:00:01]} Qf1+ {[%emt 0:00:03]} 45. Bg1 {[%emt 0:00:02] Weighted Error Value: White=0.19 (very precise) /Black=0.48.  Mistake:       	White=2     	Black=7      Inaccurate:     	White=2     	Black=1      OK:         	White=9     	Black=9      Best:        	White=2     	Black=1} 1-0

[Event "Grand Prix Romania 1st Stage 2024"]
[Site "Bucuresti"]
[Date "2024.03.23"]
[Round "2.16"]
[White "Pirvulescu, Ekaterina"]
[Black "Kozak, Adam"]
[Result "0-1"]
[ECO "C70"]
[WhiteElo "2091"]
[BlackElo "2607"]
[Annotator "TA"]
[PlyCount "82"]
[EventDate "2024.03.20"]
[EventType "swiss"]
[EventCountry "ROU"]
[SourceTitle "playchess.com"]
[Source "ChessBase"]
[SourceQuality "1"]
[TimeControl "900+5"]

{[%evp 9,82,39,39,38,81,14,25,20,24,-41,0,-7,-8,-16,-18,-31,-14,-39,-16,-39,-27,-18,64,-13,37,37,51,-11,0,0,0,-73,-72,-65,-65,-92,-106,-150,-145,-119,-93,-145,-50,-39,-43,-107,-112,-106,-109,-118,-103,-222,-221,-205,-208,-345,-166,-185,-179,-206,-221,-282,-277,-289,-278,-248,-237,-381,-378,-357,-345,-409,-400,-29994,-29995]} 1. e4 {[%emt 0:00:02]} e5 {[%emt 0:00:01]} 2. Nf3 {[%emt 0:00:02]} Nc6 {[%emt 0:00:02]} 3. Bb5 {[%emt 0:00:02]} a6 {[%emt 0:00:01]} 4. Ba4 {[%emt 0:00:01]} Nge7 {[%emt 0:00:02]} 5. Nc3 {[%emt 0:00:15]} Ng6 {[%emt 0:00:08]} 6. h4 {[%emt 0:00:06][%cal Bh2h4,Bh4h5][%mdl 32]} Bc5 {[%emt 0:01:36]} 7. d3 {[%emt 0:01:06]} (7. h5 $16 Nf4 8. h6) 7... h6 {[%emt 0:00:37]} 8. h5 {[%emt 0:01:21] Weiß hat minimalen Vorteil.} Nge7 {[%emt 0:00:14]} 9. Qe2 {[%emt 0:01:37]} (9. Bxc6 $11 Nxc6 10. Nxe5) 9... Bb4 {[%emt 0:01:02]} 10. Bd2 {[%emt 0:00:21]} d6 {[%emt 0:00:03]} (10... b5 $5 11. Bb3 $8 d6 $11) 11. Nd5 {[%emt 0:00:32]} Bxd2+ {[%emt 0:00:13]} 12. Qxd2 {[%emt 0:00:11]} O-O {[%emt 0:00:46]} 13. Bb3 {[%emt 0:00:32][%cal Od5f6]} Nxd5 {[%emt 0:00:15]} (13... a5 {scheint wilder zu sein.} 14. Nf6+ Kh8 15. a3 b5) 14. Bxd5 {[%emt 0:00:31]} Ne7 {[%emt 0:00:02]} 15. Bb3 {[%emt 0:00:13][%cal Og2g4]} c5 {[%emt 0:00:08]} (15... a5 $11) 16. O-O-O {[%emt 0:00:52]} (16. g4 $1 $14) 16... Kh8 {[%emt 0:00:12]} (16... Bg4 $11) 17. Rdg1 $14 {[%emt 0:01:16] Und g4 würde nun gewinnen.} Bg4 {[%emt 0:00:33]} 18. Ne1 {[%emt 0:00:24]} (18. Nh4 $14) 18... Qd7 {[%emt 0:01:16]} 19. f3 {[%emt 0:00:33]} Be6 {[%emt 0:00:03]} 20. g4 {[%emt 0:01:06]} (20. Bxe6 $11 Qxe6 21. Kb1) 20... Bxb3 $17 {[%emt 0:00:04]} 21. cxb3 {[%emt 0:00:18]} f6 $1 {[%emt 0:00:03]} 22. Nc2 {[%emt 0:00:44]} a5 {[%emt 0:00:01]} 23. Ne3 {[%emt 0:00:15]} a4 {[%emt 0:00:13]} 24. b4 {[%emt 0:00:29]} Nc6 {[%emt 0:00:20]} 25. Nd5 {[%emt 0:01:06]} (25. bxc5 $142 a3 (25... dxc5 26. Rd1 $17) 26. cxd6) 25... Qf7 {[%emt 0:00:01]} ({Vorzuziehen ist} 25... cxb4 $17 {Und jetzt ...b3 wäre schön.} 26. Kb1 (26. Nb6 Qe6 $17) 26... b3) 26. Kb1 $15 {[%emt 0:00:05]} cxb4 {[%emt 0:04:12]} 27. Nxb4 {[%emt 0:00:11] Schwarz führt seinen Vorteil zum Gewinn.} (27. Rc1 $15) 27... Nd4 $1 $17 {[%emt 0:00:12]} 28. Rf1 {[%emt 0:00:30]} a3 {[%emt 0:00:01]} 29. b3 {[%emt 0:00:47]} Rfc8 {[%emt 0:00:18] Schwarz hat aktiveres Spiel.} 30. f4 {[%emt 0:00:34] [#]} (30. Nd5 $17 {war einen Versuch wert.}) 30... exf4 $1 $19 {[%emt 0:00:29]} 31. Rxf4 {[%emt 0:00:42]} Qe6 {[%emt 0:00:07]} 32. Rff1 {[%emt 0:00:43]} (32. Qe3 {ist eine bessere Verteidigung.} Nxb3 33. Rf2) 32... Qxg4 {[%emt 0:00:13]} (32... Ra5 $142 {[%cal Oa5b5] Droht stark ...Rb5!} 33. Rc1 Rxc1+ (33... Qxg4 34. Nc2 $17) 34. Qxc1 Qxg4) 33. Rfg1 {[%emt 0:00:08]} Qe2 {[%emt 0:01:23]} 34. Qxe2 {[%emt 0:00:02]} Nxe2 {[%emt 0:00:02]} 35. Re1 {[%emt 0:00:10]} Nc3+ {[%emt 0:00:56]} 36. Ka1 {[%emt 0:00:02]} Rc5 {[%emt 0:00:05]} 37. Rc1 {[%emt 0:00:10]} Rac8 {[%emt 0:00:23]} 38. d4 {[%emt 0:00:06] [#]} (38. Rc2 $142) 38... R5c7 $1 {[%emt 0:00:01]} 39. Rce1 {[%emt 0:00:04]} Nb5 {[%emt 0:00:07]} 40. Nd5 {[%emt 0:00:02]} Rc2 {[%emt 0:00:01]} (40... Nxd4 $2 41. Nxc7 Nc2+ (41... Rxc7 42. Rc1 $14) 42. Kb1 Nxe1 (42... Rxc7 $2 {zu gefräßig.} 43. Rc1 $18) 43. Nb5 $19) 41. Ne7 {[%emt 0:00:05] [#]} (41. Nb4 $19 Rg2 42. Rc1 Rxc1+ 43. Rxc1) 41... Nc3 $1 {[%emt 0:00:19] Gewichteter Fehlerwert: Weiß=0.56/Schwarz=0.21 (präzise) .  Fehler:       	Weiß=11    	Schwarz=4     Ungenau:       	Weiß=2     	Schwarz=2     OK:         	Weiß=9     	Schwarz=15    Bester:       	Weiß=2     	Schwarz=2     Stark:        	---       	Schwarz=4} 0-1

[Event "Grand Prix Romania 1st Stage 2024"]
[Site "Bucuresti"]
[Date "2024.03.23"]
[Round "2.17"]
[White "Gavrilescu, David"]
[Black "Sabarez, Iulian"]
[Result "1-0"]
[ECO "C30"]
[WhiteElo "2524"]
[BlackElo "1945"]
[Annotator "TA"]
[PlyCount "49"]
[EventDate "2024.03.20"]
[EventType "swiss"]
[EventCountry "ROU"]
[SourceTitle "playchess.com"]
[Source "ChessBase"]
[SourceQuality "1"]
[TimeControl "900+5"]

{[%evp 15,49,40,33,47,66,-19,-6,-20,87,89,223,214,261,244,241,198,198,202,345,348,508,492,755,636,29997,2914,29998,2460,4048,3902,29987,29988,29998,29999,29999,29997]} 1. e4 {[%emt 0:00:03]} e5 {[%emt 0:00:01]} 2. Bc4 {[%emt 0:00:03]} Nf6 {[%emt 0:00:12]} 3. Nc3 {[%emt 0:00:01]} Bc5 {[%emt 0:01:00]} 4. d3 {[%emt 0:00:03]} Nc6 {[%emt 0:00:37]} 5. f4 {[%emt 0:00:02]} d6 {[%emt 0:00:51]} 6. Nf3 {[%emt 0:00:02]} Bg4 {[%emt 0:02:04]} 7. Na4 {[%emt 0:00:01]} Bxf3 {[%emt 0:00:39]} 8. Qxf3 {[%emt 0:00:33]} Nd4 {[%emt 0:00:37][%csl LRc2,LRf3]} 9. Qd1 {[%emt 0:00:02] Threatens to win with fxe5.} b5 {[%emt 0:00:47][%cal Ob5c4]} 10. Nxc5 {[%emt 0:00:15]} ({White should play} 10. Bxf7+ $1 $14 Kxf7 11. Nxc5 exf4 (11... dxc5 12. fxe5 Nd7 13. c3 $16) 12. Nb3) 10... bxc4 $11 {[%emt 0:02:12]} 11. fxe5 {[%emt 0:00:10] [#] Nb7 is the strong threat. The position is equal.} dxe5 {[%emt 0:00:32]} (11... dxc5 $11 {keeps the balance.} 12. exf6 Qxf6) 12. c3 $16 {[%emt 0:00:39]} (12. dxc4 Qd6 13. b4 a5 $11) 12... Ne6 {[%emt 0:02:43] A mistake that costs the game.} (12... O-O $16 {was necessary.}) 13. Qa4+ $18 {[%emt 0:00:05]} Nd7 {[%emt 0:00:07]} 14. Nxe6 {[%emt 0:00:08]} fxe6 {[%emt 0:00:02]} 15. Qxc4 {[%emt 0:00:03]} (15. dxc4 $2 Qh4+ 16. Kd1 O-O $19 (16... Qxe4 17. Qc2 $15) (16... Qg4+ $2 17. Kc2 $19)) 15... Qh4+ {[%emt 0:00:36]} 16. g3 {[%emt 0:00:01]} Qf6 {[%emt 0:00:10]} (16... Qe7 $142 17. Rf1 (17. Qxc7 O-O $16) 17... Qd6) 17. Rf1 {[%emt 0:00:07][%cal Bh1f1,Bf1f3,Bf3f8][%mdl 32]} (17. Qxc7 $2 {perishes.} O-O 18. Kd1 (18. Qxd7 $2 Qf3 $19) 18... Qf3+ 19. Kc2 Qxh1 $19) 17... Qg6 {[%emt 0:00:09]} (17... Qe7 $142 18. Qxc7 Rf8 19. Rxf8+ Kxf8) 18. Qxc7 {[%emt 0:00:08]} Ke7 {[%emt 0:00:17]} (18... Rd8 $142 19. Be3 (19. Qxa7 Nf6 $18) 19... Qg4) 19. b3 {[%emt 0:00:19]} Rhc8 {[%emt 0:00:08]} 20. Ba3+ {[%emt 0:00:02]} Ke8 {[%emt 0:00:01]} 21. Qd6 {[%emt 0:00:02]} (21. Rf8+ $142 Nxf8 22. Qe7#) 21... Qg5 {[%emt 0:00:13]} 22. Rf3 {[%emt 0:00:37] [#] Intending h4 and mate.} a5 {[%emt 0:01:10]} 23. h4 {[%emt 0:00:06] White mates.} Qd8 {[%emt 0:00:31]} 24. Qxe6+ {[%emt 0:00:02]} Qe7 {[%emt 0:00:01]} 25. Rf8+ {[%emt 0:00:05] Weighted Error Value: White=0.28 (precise) /Black=1.27.  Mistake:       	White=1     	Black=5      Inaccurate:     	---       	Black=1      OK:         	White=4     	Black=1      Best:        	White=2     	Black=1} 1-0

[Event "Grand Prix Romania 1st Stage 2024"]
[Site "Bucuresti"]
[Date "2024.03.23"]
[Round "2.18"]
[White "Nuta, Dan"]
[Black "Lupulescu, Constantin"]
[Result "0-1"]
[ECO "B25"]
[WhiteElo "2056"]
[BlackElo "2579"]
[Annotator "TA"]
[PlyCount "60"]
[EventDate "2024.03.20"]
[EventType "swiss"]
[EventCountry "ROU"]
[SourceTitle "playchess.com"]
[Source "ChessBase"]
[SourceQuality "1"]
[TimeControl "900+5"]

{[%evp 24,60,-8,-11,-16,-29,-5,-7,0,-17,-46,-29,-9,-31,-10,-12,0,0,0,-72,-71,-64,-71,-82,-72,-152,-152,-156,-157,-155,-181,-163,-124,-350,-195,-800,-753,-1168,-963]} 1. e4 {[%emt 0:00:02]} c5 {[%emt 0:00:01]} 2. Nc3 {[%emt 0:00:04]} Nc6 {[%emt 0:00:10]} 3. g3 {[%emt 0:00:06]} g6 {[%emt 0:00:09]} 4. Bg2 {[%emt 0:00:02]} Bg7 {[%emt 0:00:01]} 5. d3 {[%emt 0:00:05]} d6 {[%emt 0:00:05]} 6. f4 {[%emt 0:00:05]} Nf6 {[%emt 0:00:04]} 7. Nf3 {[%emt 0:00:10]} O-O {[%emt 0:00:03]} 8. O-O {[%emt 0:00:09]} Rb8 {[%emt 0:00:02]} 9. h3 {[%emt 0:00:20]} b5 {[%emt 0:00:23]} 10. a3 {[%emt 0:00:07]} a5 {[%emt 0:00:18][%cal Ba7a5,Ba5b4,Bb4b3][%mdl 32]} 11. g4 {[%emt 0:02:31]} b4 {[%emt 0:00:33]} 12. axb4 {[%emt 0:00:02]} axb4 {[%emt 0:00:01]} 13. Ne2 {[%emt 0:00:04]} Nd7 {[%emt 0:02:03]} 14. Qe1 {[%emt 0:02:16]} Qb6 {[%emt 0:03:09]} 15. Qf2 {[%emt 0:04:37]} Ba6 {[%emt 0:00:29] Die Stellung ist ausgeglichen.} 16. Rb1 {[%emt 0:00:56]} b3 {[%emt 0:02:12]} 17. c4 {[%emt 0:01:01]} Nb4 {[%emt 0:00:02]} 18. Rd1 {[%emt 0:00:35]} Bb7 $36 {[%emt 0:00:48][%mdl 2048] Schwarz steht aktiver.} 19. f5 {[%emt 0:00:32] [#]} Nxd3 $1 {[%emt 0:01:22]} 20. Rxd3 {[%emt 0:00:36] Und Nd2 würde nun gewinnen.} Bxe4 {[%emt 0:00:02]} 21. Ne1 {[%emt 0:01:04]} Bxd3 $17 {[%emt 0:00:22]} (21... gxf5 $6 22. Bxe4 (22. gxf5 Bxd3 23. Nxd3 Qa6 $15) 22... fxe4 23. Rd1 $14) 22. Nxd3 {[%emt 0:00:01]} Qa6 $1 {[%emt 0:00:13] Lässt Ra1 nicht zu. Droht stark ...Qa2.} 23. Bg5 {[%emt 0:01:14]} ({Aber nicht} 23. Bd5 $2 Qa2 24. fxg6 hxg6 $19 (24... Qxb1 $2 25. Bxf7+ Kh8 26. Qh4 $19)) 23... Qxc4 {[%emt 0:00:23]} 24. Rd1 {[%emt 0:00:19]} (24. Qe3 $142) 24... Qc2 {[%emt 0:01:30][%csl LRb2,LRd1]} 25. Rd2 {[%emt 0:00:06]} Qb1+ {[%emt 0:00:02]} 26. Kh2 {[%emt 0:00:02]} c4 {[%emt 0:00:21]} 27. Ndf4 {[%emt 0:00:02]} Bxb2 {[%emt 0:00:49]} 28. fxg6 $2 {[%emt 0:00:02] [#]} (28. Bxe7 $17 {einziger Zug.} Rfe8 29. Bxd6) 28... hxg6 {[%emt 0:00:02]} (28... Be5 $142 29. Bxe7 Qxg6 (29... hxg6 30. Bxd6 Qa1 31. Bxe5 $17)) 29. Qh4 $2 {[%emt 0:00:13]} (29. Bxe7 Be5 30. Bxd6) 29... Be5 $19 {[%emt 0:00:21]} (29... c3 30. Rxd6 Rb5 (30... exd6 $2 {ist das falsche Schlagen.} 31. Nd5 $18) 31. Rxd7 $18) 30. Bd5 {[%emt 0:00:04]} c3 {[%emt 0:00:18] Gewichteter Fehlerwert: Weiß=1.11/Schwarz=0.18 (sehr präzise) .  Verlustzug:     	Weiß=1     	---        Fehler:       	Weiß=3     	Schwarz=1     Ungenau:       	Weiß=1     	---        OK:         	Weiß=5     	Schwarz=4     Bester:       	Weiß=1     	Schwarz=3     Stark:        	---       	Schwarz=1} 0-1

[Event "Grand Prix Romania 1st Stage 2024"]
[Site "Bucuresti"]
[Date "2024.03.23"]
[Round "2.19"]
[White "Moroni, Luca Jr"]
[Black "Veress, Armand"]
[Result "1-0"]
[ECO "D02"]
[WhiteElo "2580"]
[BlackElo "2098"]
[Annotator "TA"]
[PlyCount "59"]
[EventDate "2024.03.20"]
[EventType "swiss"]
[EventCountry "ROU"]
[SourceTitle "playchess.com"]
[Source "ChessBase"]
[SourceQuality "1"]
[TimeControl "900+5"]

{[%evp 9,59,0,7,14,22,16,18,6,4,28,22,26,33,31,23,5,127,122,118,115,137,141,135,145,134,145,133,119,122,119,105,129,122,109,184,195,443,448,438,438,1597,1613,29992,29993,29993,29994,29994,29995,29995,29993,29993,29994]} 1. d4 {[%emt 0:00:04]} d5 {[%emt 0:00:04]} 2. Bf4 {[%emt 0:00:02]} c5 {[%emt 0:00:20]} 3. e3 {[%emt 0:00:02]} Nc6 {[%emt 0:00:03]} 4. Nf3 {[%emt 0:00:03]} Nf6 {[%emt 0:00:04]} 5. Nbd2 {[%emt 0:00:02]} cxd4 {[%emt 0:01:03]} 6. exd4 {[%emt 0:00:02]} a6 {[%emt 0:00:06]} 7. c3 {[%emt 0:00:09]} Bf5 {[%emt 0:00:19]} 8. Nh4 {[%emt 0:00:34] The position is equal.} Bg4 {[%emt 0:00:32]} 9. Qb3 {[%emt 0:00:15]} Qd7 {[%emt 0:00:04][%cal Og7g5]} 10. h3 {[%emt 0:00:18]} Bh5 {[%emt 0:00:21]} 11. Bd3 {[%emt 0:00:19]} e6 {[%emt 0:00:07]} 12. Ndf3 {[%emt 0:00:49]} h6 {[%emt 0:02:38]} (12... O-O-O $11) 13. g4 {[%emt 0:01:06]} g5 {[%emt 0:00:14] [#]} 14. Ne5 $1 {[%emt 0:00:18]} Nxe5 {[%emt 0:00:32]} 15. Bxe5 {[%emt 0:00:03]} Be7 {[%emt 0:01:12]} 16. Nf3 {[%emt 0:01:28] White is much more active.} Bg6 {[%emt 0:00:04]} 17. Bxg6 {[%emt 0:00:10]} fxg6 {[%emt 0:00:01]} 18. Bh2 $36 {[%emt 0:00:52][%mdl 2048] White is really pushing.} Bd6 {[%emt 0:01:19]} 19. Ne5 {[%emt 0:00:10]} Bxe5 {[%emt 0:00:20]} 20. Bxe5 {[%emt 0:00:04]} O-O {[%emt 0:00:05]} 21. f3 {[%emt 0:00:15] Wards off Ne4} Qb5 {[%emt 0:01:04]} (21... Qd8 $16) 22. Qc2 $18 {[%emt 0:00:15]} Kh7 {[%emt 0:00:01]} (22... Kf7 23. h4 Nd7 24. hxg5 Nxe5 25. dxe5 Ke7 26. gxh6 (26. Qxg6 Rxf3 27. O-O-O Raf8 $16) 26... Rxf3) 23. h4 {[%emt 0:00:33]} gxh4 {[%emt 0:00:33]} 24. Rxh4 {[%emt 0:00:09]} Ne4 {[%emt 0:00:16]} (24... Nxg4 $142 25. Rxg4 Rf5) 25. Qh2 {[%emt 0:00:29]} (25. fxe4 Qf1+ 26. Kd2 Rf2+ (26... Qxa1 $2 27. Rh2 $19) (26... Qg2+ 27. Kc1 Rf1+ 28. Qd1 Raf8 29. Bf6 R8xf6 30. Rh1 Rxd1+ 31. Kxd1 Rf2 32. Ke1 Rxb2 33. Rxh6+ Kxh6 34. g5+ Kg7 35. exd5 Qh1#) 27. Ke3 Raf8 (27... Rxc2 28. Rxf1 h5 29. Rf7+ Kh6 30. Bg7+ Kh7 31. Bf6+ Kg8 32. Rg7+ Kf8 33. gxh5) (27... Rf3+ 28. Kd2 Rf2+ 29. Ke3 Raf8 30. Bf6 R8xf6 31. Rxh6+ Kxh6 32. g5+ Kxg5 33. exd5 Qh3+ 34. Ke4 Qf3+ 35. Ke5 Qxd5#) (27... Rxc2 28. Rxf1) (27... Rf3+ 28. Kd2 Rf2+ 29. Ke3 Raf8 30. Bf6 R8xf6 31. Rxh6+ Kxh6 32. g5+ Kxg5 33. exd5 Qh3+ 34. Ke4 Qf3+ 35. Ke5 Qxd5#)) 25... h5 {[%emt 0:04:01] [#]} 26. Rxh5+ $1 {[%emt 0:00:04][%mdl 512] White mates.} Kg8 {[%emt 0:00:07][%cal Bh7g8,Bg8f7,Bf7e8,Be8f8][%mdl 32]} 27. Rh8+ {[%emt 0:00:11]} Kf7 {[%emt 0:00:02]} 28. Qh7+ {[%emt 0:00:12]} Ke8 {[%emt 0:00:02] Black is weak on the dark squares} 29. Rxf8+ {[%emt 0:00:06]} ({Worse is} 29. fxe4 Qf1+ 30. Kd2 Qf2+ 31. Kd1 Qf1+ 32. Kd2 (32. Kc2 Qe2+ 33. Kc1 Qe1+ 34. Kc2 Qe2+ 35. Kb3 Qb5+ 36. Ka3 Qa5+ 37. Kb3 Qb5+ 38. Kc2 Qe2+ $11) 32... Qg2+ 33. Kc1 Qf1+ 34. Kc2 Qe2+ 35. Kb3 Qb5+ 36. Ka3 (36. Kc2 Qe2+ 37. Kc1 Qe1+ 38. Kc2 Qe2+ $11) 36... Qa5+ 37. Kb3 Qb5+ 38. Kc2 (38. Ka3 Qa5+ 39. Kb3 Qb5+ $11) 38... Qe2+ 39. Kb3 Qb5+ $11) 29... Kxf8 {[%emt 0:00:02]} 30. fxe4 {[%emt 0:00:03] Weighted Error Value: White=0.02 (flawless) /Black=0.53.  Mistake:       	---       	Black=4      Inaccurate:     	---       	Black=1      OK:         	White=9     	Black=8      Best:        	White=2     	Black=1      Strong:       	White=1     	---} 1-0